bitfinex-derivatives/quotes_ETHF0:USTF0_20260222
["timestamp","ask_amount","ask_price","bid_price","bid_amount"]
[1771789354067,0.55065337,1944.7,1944.4,0.00416767]
[1771789354266,0.55065337,1944.7,1944.3,0.6039107]
[1771789355271,0.55065337,1944.7,1944.3,0.60971438]
[1771789357273,0.55065337,1944.7,1944.3,0.00580368]
[1771789361477,0.55065337,1944.7,1944.2,0.6039107]
[1771789362476,0.55065337,1944.7,1944.2,0.6087682]
[1771789375380,0.58710029,1944.5,1944.2,0.0048575]
[1771789375583,0.59334303,1944.5,1944.0,0.59495298]
[1771789376485,0.59334303,1944.5,1944.0,0.59892442]
[1771789382088,0.59334303,1944.5,1944.1,0.59495298]
[1771789383692,0.59334303,1944.5,1944.0,0.00397144]
[1771789383889,0.59334303,1944.5,1944.0,0.59892442]
[1771789391794,0.00624274,1944.5,1944.2,0.57905378]
[1771789391994,0.57745396,1944.7,1944.2,0.57905378]
[1771789392897,0.58116035,1944.7,1944.2,0.57905378]
[1771789400202,5.87059788,1944.6,1944.2,0.57905378]
[1771789400406,0.57096348,1944.5,1944.2,0.57905378]
[1771789402704,0.57096348,1944.6,1944.2,0.57905378]
[1771789403602,0.57466987,1944.7,1944.2,0.57905378]
[1771789403806,5.87196972,1944.6,1944.2,0.57905378]
[1771789404001,0.57466987,1944.7,1944.2,0.57905378]
[1771789404198,5.87196945,1944.6,1944.2,0.57905378]
[1771789404407,0.57466987,1944.7,1944.2,0.57905378]
[1771789404706,5.87261125,1944.6,1944.2,0.57905378]
[1771789404906,0.57466987,1944.7,1944.2,0.57905378]
[1771789405107,5.87261151,1944.6,1944.2,0.57905378]
[1771789405308,0.57466987,1944.7,1944.2,0.57905378]
[1771789405507,5.87344781,1944.6,1944.2,0.57905378]
[1771789405718,0.57466987,1944.7,1944.2,0.57905378]
[1771789405904,5.87344781,1944.6,1944.2,0.57905378]
[1771789406099,0.57466987,1944.7,1944.2,0.57905378]
[1771789406309,5.87344781,1944.6,1944.2,0.57905378]
[1771789406508,0.57466987,1944.7,1944.2,0.57905378]
[1771789406709,5.87346959,1944.6,1944.2,0.57905378]
[1771789407006,0.57466987,1944.7,1944.2,0.57905378]
[1771789407206,5.87346959,1944.6,1944.2,0.57905378]
[1771789407408,0.57466987,1944.7,1944.2,0.57905378]
[1771789407601,5.87349207,1944.6,1944.2,0.57905378]
[1771789407799,0.57466987,1944.7,1944.2,0.57905378]
[1771789408000,5.87349207,1944.6,1944.2,0.57905378]
[1771789408199,0.57466987,1944.7,1944.2,0.57905378]
[1771789408400,5.8735145,1944.6,1944.2,0.57905378]
[1771789408603,0.57466987,1944.7,1944.2,0.57905378]
[1771789408807,5.8735145,1944.6,1944.2,0.57905378]
[1771789409007,0.57466987,1944.7,1944.2,0.57905378]
[1771789409208,5.87351599,1944.6,1944.2,0.57905378]
[1771789409412,0.57466987,1944.7,1944.2,0.57905378]
[1771789409610,5.87353887,1944.6,1944.2,0.57905378]
[1771789409812,0.57466987,1944.7,1944.2,0.57905378]
[1771789410012,5.87353887,1944.6,1944.2,0.57905378]
[1771789410213,0.57466987,1944.7,1944.2,0.57905378]
[1771789410415,6.4445254,1944.6,1944.2,0.57905378]
[1771789410613,0.57096348,1944.6,1944.2,0.57905378]
[1771789421420,0.60926413,1944.7,1944.2,0.57905378]
[1771789421614,5.87193744,1944.6,1944.2,0.57905378]
[1771789421815,0.60926413,1944.7,1944.2,0.57905378]
[1771789422015,5.87193453,1944.6,1944.2,0.57905378]
[1771789422210,0.60926413,1944.7,1944.2,0.57905378]
[1771789422416,5.87192756,1944.6,1944.2,0.57905378]
[1771789422615,0.60926413,1944.7,1944.2,0.57905378]
[1771789422914,5.87192782,1944.6,1944.2,0.57905378]
[1771789423115,0.60926413,1944.7,1944.2,0.57905378]
[1771789423419,0.00370639,1944.7,1944.2,0.57905378]
[1771789436229,0.60555774,1945.0,1944.2,0.57905378]
[1771789436429,6.46956416,1944.9,1944.2,0.57905378]
[1771789436621,0.60555774,1944.9,1944.2,0.57905378]
[1771789437327,0.61027121,1944.9,1944.2,0.57905378]
[1771789438631,0.00471347,1944.9,1944.2,0.57905378]
[1771789439133,0.61027121,1944.9,1944.2,0.57905378]
[1771789441230,0.61027121,1944.9,1944.1,0.54670239]
[1771789441430,0.60555774,1944.7,1944.1,0.54670239]
[1771789460847,0.5742444,1944.9,1944.1,0.54670239]
[1771789461052,5.86458994,1944.8,1944.1,0.54670239]
[1771789461252,0.5742444,1944.9,1944.1,0.54670239]
[1771789461450,6.43398207,1944.8,1944.1,0.54670239]
[1771789461751,0.56953093,1944.8,1944.1,0.54670239]
[1771789465255,0.56953093,1944.8,1944.5,0.59515912]
[1771789466653,0.00471347,1944.9,1944.5,0.59515912]
[1771789466854,0.5742444,1944.9,1944.5,0.59515912]
[1771789487767,0.5742444,1944.9,1944.5,0.40437826]
[1771789488968,0.00471347,1944.9,1944.5,0.40437826]
[1771789489168,0.5505481,1945.2,1944.8,1.75570797]
[1771789490066,0.5547099,1945.2,1944.8,1.75570797]
[1771789490262,0.5547099,1945.2,1944.8,0.57062659]
[1771789496773,0.5547099,1945.2,1944.8,0.58062659]
[1771789498677,0.0041618,1945.2,1944.9,0.57062659]
[1771789498877,7.81807913,1945.7,1944.9,0.57062659]
[1771789498878,0.5505481,1945.4,1944.9,0.57062659]
[1771789499776,0.55475422,1945.4,1944.9,0.57062659]
[1771789500174,0.55475422,1945.4,1944.8,0.01]
[1771789500381,0.5505481,1945.0,1944.5,0.57062659]
[1771789501877,0.5505481,1945.0,1944.6,0.57062659]
[1771789502179,0.5505481,1945.3,1944.7,1.18508138]
[1771789502378,0.5505481,1945.3,1944.8,0.57062659]
[1771789521888,5.8406393,1945.2,1944.8,0.57062659]
[1771789522088,0.55478753,1945.1,1944.6,0.59124499]
[1771789530091,0.55478753,1945.1,1944.4,0.59124499]
[1771789563427,0.55478753,1945.1,1944.5,0.54905654]
[1771789567125,0.55805025,1945.3,1944.5,0.54905654]
[1771789567329,0.55805025,1945.3,1944.6,0.54905654]
[1771789579039,5.29095699,1945.8,1944.8,0.58124786]
[1771789579233,0.56853325,1946.6,1945.6,1.18497269]
[1771789579430,0.56853325,1946.4,1945.4,0.58124786]
[1771789580038,0.57235637,1946.4,1945.4,0.58518906]
[1771789580235,0.57235637,1946.4,1945.5,0.58124786]
[1771789587345,0.56853325,1946.3,1945.5,1.76509514]
[1771789589839,0.56853325,1946.3,1945.6,0.58124786]
[1771789595348,0.56853325,1945.9,1945.1,4.87863268]
[1771789595539,0.56853325,1945.9,1945.1,0.58124786]
[1771789595941,0.56853325,1945.9,1945.2,1.18384728]
[1771789596246,0.56853325,1945.9,1945.2,1.76509514]
[1771789596448,0.56853325,1945.9,1945.2,1.76921199]
[1771789600249,0.56853325,1945.9,1945.3,0.57405774]
[1771789622269,0.56853325,1945.9,1945.3,4.87144256]
[1771789622474,0.56853325,1945.9,1945.4,0.57405774]
[1771789642081,0.5813311,1945.8,1945.2,4.31807052]
[1771789642780,0.5813311,1945.8,1945.2,4.91378947]
[1771789645079,0.5813311,1945.7,1945.0,4.31395367]
[1771789645381,0.5813311,1945.7,1945.0,4.90967262]
[1771789645782,0.5813311,1945.7,1945.1,0.59571895]
[1771789646282,0.5813311,1945.7,1945.1,0.59958245]
[1771789650681,4.9005847,1945.9,1945.1,0.59958245]
[1771789650886,0.5813311,1945.9,1945.3,0.59571895]
[1771789653584,0.5813311,1945.9,1945.2,0.59571895]
[1771789660784,0.55475638,1945.8,1945.2,0.59571895]
[1771789683198,4.87228597,1945.8,1945.2,0.59571895]
[1771789684903,0.55475638,1945.7,1945.2,0.59571895]
[1771789714031,0.55149125,1945.5,1945.1,0.0038635]
[1771789714227,0.55149125,1945.5,1944.9,4.90583544]
[1771789714424,0.55149125,1945.5,1945.0,0.58890527]
[1771789715130,0.55149125,1945.5,1945.0,0.59365219]
[1771789731547,0.55149125,1945.5,1945.0,0.51256693]
[1771789741463,0.55149125,1945.5,1945.0,0.55984978]
[1771789765581,0.55149125,1945.5,1945.0,0.59647195]
[1771789787703,4.57461959,1945.6,1945.0,0.59647195]
[1771789787899,0.85240102,1945.6,1945.0,0.59647195]
[1771789788100,5.16993061,1945.6,1945.0,0.59647195]
[1771789788301,0.85240102,1945.6,1945.0,0.59647195]
[1771789792601,0.25709,1945.6,1945.0,0.59647195]
[1771789792806,0.85240102,1945.6,1945.0,0.59647195]
[1771789796013,0.59531102,1945.5,1945.0,0.59647195]
[1771789802611,4.91284061,1945.7,1945.0,0.59647195]
[1771789802919,0.59531102,1945.7,1945.2,0.57788139]
[1771789803712,0.59531102,1945.8,1945.2,0.57788139]
[1771789839948,0.57414473,1945.7,1945.1,0.57169755]
[1771789843255,0.57414473,1945.7,1945.0,0.00474692]
[1771789843958,0.57414473,1945.7,1945.0,0.57644447]
[1771789888204,0.56148906,1945.6,1945.0,0.57644447]
[1771789901410,4.31752959,1945.6,1944.8,7.07586518]
[1771789901619,0.55987604,1945.1,1944.5,0.60516594]
[1771789901913,0.55987604,1945.0,1944.1,0.60516594]
[1771789902109,0.55987604,1944.9,1944.1,0.60516594]
[1771789902507,0.56480274,1944.9,1944.1,0.61072188]
[1771789906715,1.74427113,1944.7,1944.1,0.00555594]
[1771789906917,0.55987604,1944.6,1944.1,0.00555594]
[1771789907216,0.55987604,1944.6,1943.9,0.60516594]
[1771789908118,0.55987604,1944.6,1943.9,0.61114234]
[1771789915825,0.55987604,1944.6,1943.9,0.0059764]
[1771789916020,0.55987604,1944.6,1943.9,0.61114234]
[1771789920826,0.55987604,1944.6,1943.9,0.0059764]
[1771789921021,0.55987604,1944.6,1943.4,1.18439509]
[1771789921022,0.55987604,1944.4,1943.2,0.60516594]
[1771789921221,0.55987604,1944.2,1943.2,0.60516594]
[1771789921918,0.55987604,1944.2,1943.2,0.61084818]
[1771789922627,0.55987604,1943.9,1943.2,0.00568224]
[1771789923528,0.55987604,1943.9,1943.2,0.61084818]
[1771789946842,0.55237603,1944.1,1943.2,0.61084818]
[1771789953445,0.55237603,1944.1,1943.5,0.58757401]
[1771789956848,0.55237603,1944.0,1943.5,0.58757401]
[1771789972859,6.47629438,1944.3,1943.7,0.55143733]
[1771789972860,4.83414031,1944.2,1943.7,0.55143733]
[1771789973061,0.55307097,1944.1,1943.7,0.55143733]
[1771789997386,0.54914635,1943.9,1943.3,7.01391677]
[1771789997580,0.54914635,1943.9,1943.3,0.56612623]
[1771790066334,4.89865648,1944.0,1943.4,0.59930637]
[1771790066540,6.47629438,1944.1,1943.4,0.59930637]
[1771790066541,0.57896293,1944.1,1943.4,0.59930637]
[1771790075245,0.57896293,1944.1,1943.7,0.59930637]
[1771790089252,0.56979437,1944.4,1944.1,0.56038187]
[1771790089448,0.56979437,1944.4,1943.4,7.6338374]
[1771790089449,0.56979437,1944.4,1943.9,0.56038187]
[1771790089654,0.56979437,1944.3,1943.7,0.56038187]
[1771790091755,0.56979437,1944.3,1943.8,1.18604686]
[1771790091958,0.56979437,1944.3,1943.8,1.74642873]
[1771790094659,0.56979437,1944.3,1943.9,0.56038187]
[1771790098262,0.56979437,1944.5,1943.9,0.56038187]
[1771790098458,0.56979437,1944.8,1944.1,0.56038187]
[1771790098763,0.56979437,1944.8,1944.3,0.56038187]
[1771790098958,0.56979437,1944.8,1944.0,1.18604686]
[1771790098959,0.56979437,1945.1,1944.7,0.56038187]
[1771790099257,0.56979437,1945.1,1944.3,1.18604686]
[1771790099461,0.56979437,1945.1,1944.3,1.74642873]
[1771790099663,0.56979437,1944.9,1944.3,0.56038187]
[1771790099964,0.56979437,1944.7,1944.0,0.56038187]
[1771790100365,0.56979437,1944.5,1943.7,7.6338374]
[1771790100565,0.56979437,1944.5,1943.8,0.56038187]
[1771790101062,0.56979437,1944.5,1943.8,0.56416963]
[1771790164712,0.56979437,1944.5,1943.9,0.57304804]
[1771790168822,0.56979437,1944.5,1943.8,0.61026065]
[1771790171323,0.56979437,1944.5,1943.9,0.60647289]
[1771790197243,0.56979437,1944.5,1944.0,0.55486621]
[1771790238478,0.55653734,1944.8,1944.4,0.59070947]
[1771790239278,0.55653734,1944.8,1944.2,0.59070947]
[1771790250485,0.56240522,1944.9,1944.5,0.59070947]
[1771790283006,0.56240522,1944.9,1944.3,0.59429626]
[1771790283908,0.56240522,1944.9,1944.2,6.47453682]
[1771790284108,0.56240522,1944.9,1944.1,7.06883308]
[1771790286721,0.56240522,1944.9,1944.2,0.59429626]
[1771790293917,0.56240522,1944.9,1944.1,7.07906566]
[1771790295221,0.56240522,1944.9,1944.1,0.60452884]
[1771790303534,0.56240522,1944.9,1944.2,0.57581789]
[1771790319251,0.55934667,1944.8,1944.2,0.57581789]
[1771790327751,0.56521455,1944.9,1944.3,0.54690127]
[1771790327951,0.56521455,1944.9,1944.4,0.54690127]
[1771790329257,0.55934667,1944.7,1944.1,7.02143809]
[1771790329459,0.55934667,1944.1,1943.8,0.55068903]
[1771790329757,1.74475597,1944.2,1943.8,0.55068903]
[1771790329959,0.55934667,1944.2,1943.8,0.55068903]
[1771790349575,0.55934667,1944.2,1943.8,0.00378776]
[1771790350371,1.74475597,1944.2,1943.6,0.56957335]
[1771790350673,0.599834,1944.1,1943.6,0.56957335]
[1771790351465,0.599834,1944.1,1943.6,0.57481076]
[1771790352574,0.599834,1943.9,1943.6,0.00523741]
[1771790352971,0.599834,1943.9,1943.6,0.57481076]
[1771790354080,0.599834,1943.9,1943.5,0.56957335]
[1771790355078,0.599834,1943.9,1943.5,0.5744188]
[1771790362386,0.599834,1943.9,1943.5,0.00484545]
[1771790364788,0.599834,1943.9,1943.5,0.58476267]
[1771790376193,0.5463512,1944.1,1943.6,0.57991722]
[1771790378197,6.62101354,1944.0,1943.6,0.57991722]
[1771790378394,0.60143057,1944.0,1943.6,0.57991722]
[1771790390703,0.60143057,1944.2,1943.6,0.57991722]
[1771790390908,6.60105097,1944.1,1943.6,0.57991722]
[1771790391108,5.9996204,1944.0,1943.6,0.57991722]
[1771790391406,6.60105097,1944.0,1943.6,0.57991722]
[1771790391708,0.60143057,1944.0,1943.6,0.57991722]
[1771790399413,0.60143057,1944.2,1943.6,0.57991722]
[1771790406917,0.60143057,1944.2,1943.5,0.00484545]
[1771790407215,0.60143057,1944.2,1943.5,0.56740074]
[1771790411514,5.97169745,1944.1,1943.5,0.56740074]
[1771790411720,0.59828957,1944.0,1943.5,0.56740074]
[1771790417327,0.55072857,1944.2,1943.5,0.56740074]
[1771790417527,0.55072857,1944.1,1943.5,0.56740074]
[1771790420730,0.55072857,1944.2,1943.5,0.56740074]
[1771790429234,4.86793394,1944.4,1943.5,0.56740074]
[1771790429535,0.55072857,1944.4,1943.7,0.60652695]
[1771790431538,0.55072857,1944.6,1943.7,0.60652695]
[1771790431738,5.97282064,1944.5,1943.7,0.60652695]
[1771790431939,0.55072857,1944.6,1943.7,0.60652695]
[1771790432137,6.52350154,1944.5,1943.7,0.60652695]
[1771790432339,0.55072857,1944.5,1943.7,0.60652695]
[1771790433938,0.55072857,1944.5,1943.8,0.60652695]
[1771790443244,0.55072857,1944.5,1944.1,0.57265108]
[1771790444243,0.55072857,1944.5,1944.0,1.18547603]
[1771790444441,0.55072857,1944.5,1943.8,1.75812711]
[1771790444642,0.56358363,1944.4,1943.8,0.57265108]
[1771790444944,1.18547603,1944.3,1943.5,0.57749653]
[1771790445142,1.18547603,1944.5,1943.5,0.57749653]
[1771790445143,0.56358363,1944.2,1943.5,0.57749653]
[1771790447648,0.56358363,1944.2,1943.7,0.57265108]
[1771790448843,0.56358363,1944.2,1943.6,1.18547603]
[1771790449047,0.56358363,1944.2,1943.6,1.75812711]
[1771790449347,0.56358363,1944.2,1943.6,0.57265108]
[1771790464968,6.4835876,1944.7,1944.1,0.57265108]
[1771790465174,0.56358363,1944.5,1944.1,0.57265108]
[1771790479688,0.56358363,1944.5,1943.9,0.57019705]
[1771790481087,0.55750225,1944.7,1943.9,0.57019705]
[1771790481287,0.55750225,1944.5,1943.9,0.57019705]
[1771790486192,0.55750225,1944.5,1943.8,1.18547603]
[1771790486193,0.55750225,1944.5,1943.8,0.57019705]
[1771790492397,0.56337013,1944.9,1944.3,0.57019705]
[1771790492598,0.56337013,1944.9,1944.2,1.75567308]
[1771790492599,0.55750225,1944.7,1944.2,1.75567308]
[1771790492997,0.55750225,1944.7,1944.3,0.57019705]
[1771790493999,0.55750225,1944.8,1944.5,0.57019705]
[1771790497204,0.47850753,1944.8,1944.5,0.57019705]
[1771790500106,0.47850753,1944.8,1944.4,0.57981342]
[1771790500404,0.47850753,1944.8,1944.3,0.57981342]
[1771790503604,0.47850753,1944.8,1944.2,0.57981342]
[1771790503805,0.47850753,1944.8,1944.1,0.57981342]
[1771790504808,0.47850753,1944.8,1943.9,0.57981342]
[1771790505008,0.59271688,1944.6,1943.9,0.57981342]
[1771790527430,0.59858476,1944.9,1944.1,0.57981342]
[1771790528029,0.59858476,1944.9,1944.4,0.57981342]
[1771790532532,0.59858476,1944.9,1944.0,1.18535726]
[1771790532731,0.59858476,1944.9,1944.3,0.5648124]
[1771790536436,0.00586788,1944.9,1944.3,0.5648124]
[1771790536634,0.00586788,1944.9,1944.3,1.75016966]
[1771790537234,0.00586788,1944.9,1944.4,0.6060854]
[1771790537734,0.58369842,1945.0,1944.4,0.6060854]
[1771790537936,0.58369842,1945.4,1944.4,0.6060854]
[1771790538135,0.58369842,1945.2,1944.4,0.6060854]
[1771790538735,0.590306,1945.2,1944.4,0.6060854]
[1771790556350,0.58369842,1945.0,1944.4,0.6060854]
[1771790564752,0.58369842,1945.0,1944.4,0.6160854]
[1771790565255,0.58369842,1945.0,1944.5,0.58744084]
[1771790583272,0.58369842,1945.0,1944.4,0.57433154]
[1771790589779,0.58369842,1945.0,1944.4,1.75940462]
[1771790589976,0.58369842,1945.0,1944.5,0.55900254]
[1771790595488,0.58593297,1945.1,1944.5,0.55900254]
[1771790595688,6.50316048,1945.0,1944.5,0.55900254]
[1771790595884,0.58593297,1945.0,1944.5,0.55900254]
[1771790631619,0.58593297,1945.0,1944.5,0.56900254]
[1771790631824,0.59233245,1944.8,1944.0,0.54636857]
[1771790632122,0.59233245,1944.6,1944.0,0.54636857]
[1771790639125,0.59233245,1944.6,1943.7,0.54636857]
[1771790657243,5.94260732,1944.5,1943.7,0.54636857]
[1771790657444,0.60630381,1944.4,1943.7,0.54636857]
[1771790661243,6.5613356,1944.3,1943.7,0.54636857]
[1771790661549,0.60630381,1944.3,1943.7,0.54636857]
[1771790672156,0.60630381,1944.4,1943.7,0.54636857]
[1771790672456,5.9552321,1944.3,1943.7,0.54636857]
[1771790672754,0.60630381,1944.4,1943.7,0.54636857]
[1771790672956,5.95513097,1944.3,1943.7,0.54636857]
[1771790673157,0.60630381,1944.4,1943.7,0.54636857]
[1771790673358,5.95528976,1944.3,1943.7,0.54636857]
[1771790673559,0.60630381,1944.4,1943.7,0.54636857]
[1771790673757,5.95529029,1944.3,1943.7,0.54636857]
[1771790674057,0.60630381,1944.4,1943.7,0.54636857]
[1771790674256,5.95529029,1944.3,1943.7,0.54636857]
[1771790674451,0.60630381,1944.4,1943.7,0.54636857]
[1771790674658,5.95363771,1944.3,1943.7,0.54636857]
[1771790674859,0.60630381,1944.4,1943.7,0.54636857]
[1771790675061,5.95363771,1944.3,1943.7,0.54636857]
[1771790675255,0.60630381,1944.4,1943.7,0.54636857]
[1771790675455,5.95407147,1944.3,1943.7,0.54636857]
[1771790675758,0.60630381,1944.4,1943.7,0.54636857]
[1771790675961,5.95407147,1944.3,1943.7,0.54636857]
[1771790676155,0.60630381,1944.3,1943.7,0.54636857]
[1771790683465,0.60630381,1944.3,1943.7,0.55636857]
[1771790687370,0.60630381,1944.3,1944.0,0.58502656]
[1771790695082,0.60630381,1944.3,1943.9,1.77079258]
[1771790695475,0.60630381,1944.3,1943.9,0.58502656]
[1771790698580,0.60630381,1944.3,1943.7,1.78079258]
[1771790698883,0.55766111,1944.1,1943.7,0.59502656]
[1771790699284,4.31978186,1944.5,1943.8,0.58502656]
[1771790699584,0.55766111,1944.1,1943.7,0.01]
[1771790699882,0.55766111,1943.9,1943.5,0.58987201]
[1771790701286,0.55766111,1943.9,1943.4,0.58502656]
[1771790702184,0.55766111,1943.9,1943.4,0.58899075]
[1771790704682,0.55766111,1944.3,1943.8,0.58502656]
[1771790705991,0.55766111,1944.3,1944.0,0.58502656]
[1771790706188,0.55766111,1944.5,1944.0,0.58502656]
[1771790706389,6.50880855,1944.4,1944.0,0.58502656]
[1771790706589,0.55766111,1944.4,1944.0,0.58502656]
[1771790707387,4.31978186,1944.8,1943.5,1.18576602]
[1771790707388,0.55766111,1944.7,1944.2,0.58502656]
[1771790707690,6.50817006,1944.6,1944.3,0.58502656]
[1771790707882,0.55766111,1944.7,1944.3,0.58502656]
[1771790708786,0.57199099,1944.9,1944.5,0.56483421]
[1771790708983,0.57199099,1944.9,1944.4,1.18576602]
[1771790708984,0.00660758,1945.2,1944.9,0.56483421]
[1771790709186,0.57199099,1945.4,1944.9,0.56483421]
[1771790709386,0.57199099,1945.4,1944.7,0.56483421]
[1771790709990,0.57199099,1945.4,1944.8,1.75060023]
[1771790710288,0.57792913,1945.4,1944.9,0.56483421]
[1771790721697,0.00593814,1945.4,1945.1,0.56873239]
[1771790722197,0.55726824,1945.4,1945.1,0.56873239]
[1771790736803,0.00593814,1945.4,1945.1,0.56873239]
[1771790737001,0.5513301,1945.8,1945.3,0.56873239]
[1771790737306,5.89642723,1945.7,1945.3,0.56873239]
[1771790737599,0.5513301,1945.8,1945.3,0.56873239]
[1771790737805,5.90222856,1945.7,1945.3,0.56873239]
[1771790738005,0.00418529,1945.7,1945.3,0.56873239]
[1771790741111,0.60209215,1945.7,1945.3,0.56873239]
[1771790748313,0.60209215,1945.7,1944.9,0.59180653]
[1771790748709,0.59790686,1945.6,1944.9,0.59180653]
[1771790759714,4.30597258,1946.0,1944.9,0.59180653]
[1771790759919,6.50024627,1946.0,1945.2,0.59180653]
[1771790760117,0.59790686,1945.9,1945.2,0.59180653]
[1771790760919,0.60446024,1945.9,1945.2,0.59180653]
[1771790761416,0.59790686,1945.7,1945.2,0.59180653]
[1771790769227,0.59790686,1945.7,1945.2,0.60180653]
[1771790771838,0.59790686,1945.7,1945.2,0.01]
[1771790772137,0.58707714,1945.5,1945.0,0.57324364]
[1771790772434,0.58707714,1945.3,1945.0,0.57324364]
[1771790772636,0.58707714,1945.3,1944.9,0.57324364]
[1771790774138,0.58707714,1945.3,1944.8,0.57830999]
[1771790777340,0.58707714,1945.3,1944.8,0.00506635]
[1771790777937,4.31198477,1945.5,1944.8,0.00506635]
[1771790777938,0.59452201,1945.1,1944.8,0.00506635]
[1771790780542,0.59452201,1945.1,1944.6,0.55872284]
[1771790781241,0.59452201,1945.1,1944.2,0.55872284]
[1771790781644,0.59452201,1944.9,1944.2,0.56453242]
[1771790804665,0.59452201,1944.9,1944.2,0.00580958]
[1771790806863,0.59452201,1944.9,1944.2,0.60418162]
[1771790808264,0.5886881,1944.7,1944.2,0.60418162]
[1771790812972,0.5886881,1944.5,1943.8,0.59837204]
[1771790813267,0.5886881,1944.3,1943.8,0.59837204]
[1771790814070,0.59325191,1944.3,1943.8,0.60371811]
[1771790816074,0.59325191,1944.3,1943.8,0.00534607]
[1771790816675,0.5886881,1944.1,1943.8,0.00534607]
[1771790816873,0.5886881,1943.9,1943.3,0.59837204]
[1771790817874,0.5886881,1943.9,1943.3,0.6045364]
[1771790818076,0.5886881,1944.1,1943.5,0.59837204]
[1771790818277,0.59325191,1944.3,1943.5,0.59837204]
[1771790821877,0.5886881,1943.9,1943.4,0.59837204]
[1771790822976,0.5886881,1943.9,1943.4,0.54504921]
[1771790841192,0.5886881,1943.9,1943.3,0.00616436]
[1771790841389,0.5886881,1943.9,1943.3,0.55290936]
[1771790844704,0.5886881,1943.9,1943.3,0.00616436]
[1771790849198,5.9156206,1943.8,1943.3,0.00616436]
[1771790849404,0.60190962,1943.7,1943.3,0.54867687]
[1771790852202,0.60190962,1943.7,1943.0,9.25369306]
[1771790853206,0.60190962,1943.7,1943.0,9.25925214]
[1771790868515,0.60190962,1943.7,1943.1,0.00258974]
[1771790881029,0.60190962,1943.7,1943.0,8.07751459]
[1771790884833,0.60190962,1943.7,1943.1,0.00412316]
[1771790891637,0.60190962,1943.7,1943.1,8.07215407]
[1771790891833,0.60190962,1943.7,1943.2,0.00358075]
[1771790894236,0.60190962,1943.7,1943.1,0.00360602]
[1771790904844,0.60190962,1943.7,1943.0,8.08108816]
[1771790907145,0.60190962,1943.7,1943.1,0.00821431]
[1771790911047,0.60190962,1943.7,1943.0,8.07955474]
[1771790913949,0.60190962,1943.7,1943.0,0.00555908]
[1771790920251,0.60190962,1943.7,1942.8,8.06803091]
[1771790920456,0.60484701,1943.5,1942.7,8.06803091]
[1771790921057,0.60484701,1943.5,1942.6,8.99215621]
[1771790921253,0.60484701,1943.5,1942.6,8.99592779]
[1771790924458,0.60484701,1943.5,1942.6,0.92789688]
[1771790925561,0.60484701,1943.5,1942.7,0.02471266]
[1771790927660,0.60484701,1943.5,1942.8,0.02613747]
[1771790932069,0.60484701,1943.5,1942.7,1.18668411]
[1771790932269,0.60484701,1943.5,1942.6,9.01625771]
[1771790932869,0.60484701,1943.5,1942.7,0.02503719]
[1771790933271,0.60484701,1943.5,1942.7,1.21212489]
[1771790934471,0.60484701,1943.5,1942.8,0.02310622]
[1771790936571,0.60484701,1943.5,1942.9,1.1870877]
[1771790940777,0.60484701,1943.5,1942.7,1.1870877]
[1771790941877,0.60484701,1943.5,1942.7,1.20936484]
[1771790948082,0.60484701,1943.5,1942.7,9.27739575]
[1771790948383,0.60484701,1943.5,1942.8,0.02214144]
[1771790949779,0.60484701,1943.5,1942.7,1.1870877]
[1771790949985,0.60677567,1943.0,1942.6,0.00377158]
[1771790950885,0.60677567,1943.0,1942.7,0.02216351]
[1771790953486,0.60677567,1943.0,1942.6,1.23192146]
[1771790959698,0.60677567,1943.0,1942.7,0.04112124]
[1771790959896,0.60677567,1943.0,1942.6,1.23198052]
[1771790977206,0.58663946,1943.2,1942.7,0.04088348]
[1771790977506,0.58663946,1943.2,1942.9,0.04088348]
[1771790978608,0.58864933,1943.3,1942.9,0.04088348]
[1771790987216,4.31559956,1943.7,1943.0,1.74036071]
[1771790987421,0.54730829,1943.6,1943.1,0.55327301]
[1771791003628,0.54730829,1943.8,1943.1,0.55327301]
[1771791048561,0.56930683,1943.6,1942.7,0.60574818]
[1771791048762,0.56930683,1943.4,1942.7,0.60574818]
[1771791063174,0.56930683,1943.4,1942.6,1.19093952]
[1771791063374,0.56930683,1943.2,1942.6,0.00377158]
[1771791064474,0.56930683,1943.0,1942.6,0.00377158]
[1771791064683,0.56930683,1943.0,1942.4,0.60574818]
[1771791065578,0.56930683,1943.0,1942.4,0.6105456]
[1771791065779,0.56930683,1942.9,1942.4,0.6105456]
[1771791065973,0.57298075,1942.9,1942.4,0.6105456]
[1771791066373,0.57298075,1942.9,1942.4,0.00479742]
[1771791066575,0.57298075,1942.9,1942.4,0.6105456]
[1771791067073,0.57298075,1942.9,1942.4,0.00479742]
[1771791067273,0.56930683,1942.7,1942.2,0.60574818]
[1771791068179,0.56930683,1942.7,1942.2,0.61070799]
[1771791074681,0.56930683,1942.7,1942.2,0.00495981]
[1771791074882,0.56930683,1942.7,1942.0,0.57104091]
[1771791075185,0.57020645,1942.3,1941.7,0.58815159]
[1771791075386,0.57020645,1942.3,1941.8,0.58815159]
[1771791075983,0.57020645,1942.3,1941.8,0.59302343]
[1771791078689,0.57020645,1942.3,1941.8,0.00487184]
[1771791078895,1.18716794,1942.4,1941.6,0.58815159]
[1771791078896,0.57020645,1942.1,1941.7,0.58815159]
[1771791079289,0.57020645,1942.5,1942.1,0.58815159]
[1771791079694,0.57020645,1942.5,1942.0,1.77531953]
[1771791079992,0.57020645,1942.5,1942.0,1.78123389]
[1771791081094,0.57020645,1942.5,1942.0,0.59406595]
[1771791092000,0.57020645,1942.5,1942.1,0.58815159]
[1771791092209,0.57020645,1942.6,1942.1,0.58815159]
[1771791096311,0.57020645,1942.6,1942.0,0.59406595]
[1771791111724,0.57020645,1942.6,1941.7,8.06803091]
[1771791111725,0.59363399,1942.1,1941.7,0.55278335]
[1771791112325,0.59363399,1942.1,1941.4,0.55278335]
[1771791112627,0.59363399,1942.1,1941.4,0.55871606]
[1771791114526,0.59363399,1941.9,1941.4,0.55871606]
[1771791115426,0.59363399,1941.9,1941.4,0.00593271]
[1771791119130,0.59363399,1941.9,1941.4,0.55871606]
[1771791121430,0.59363399,1942.0,1941.4,0.55871606]
[1771791121627,0.59363399,1942.4,1941.4,0.55871606]
[1771791121827,0.59363399,1942.2,1941.4,0.55871606]
[1771791134535,0.59363399,1942.2,1941.4,0.00593271]
[1771791134743,0.58469259,1942.0,1941.4,0.00593271]
[1771791140746,0.56242766,1941.8,1941.1,0.55293974]
[1771791141645,0.56242766,1941.8,1941.1,0.55740066]
[1771791144749,0.56242766,1941.8,1941.1,0.00446092]
[1771791144949,0.56242766,1941.8,1941.1,0.55740066]
[1771791153958,0.56242766,1941.6,1941.1,0.00446092]
[1771791154356,0.56242766,1941.6,1941.1,0.55740066]
[1771791154751,0.56242766,1941.6,1941.1,0.00446092]
[1771791155455,0.56242766,1941.6,1940.8,0.55293974]
[1771791156360,0.56242766,1941.6,1940.8,0.55835881]
[1771791169266,0.6049288,1941.7,1941.0,0.55073304]
[1771791169466,0.6049288,1941.5,1941.0,0.55073304]
[1771791169669,0.60882801,1941.5,1941.0,0.55073304]
[1771791177573,0.60882801,1941.5,1941.2,0.55073304]
[1771791178673,0.60882801,1941.5,1941.0,0.55073304]
[1771791181579,0.60882801,1941.5,1940.9,0.55073304]